bitfinex/quotes_SOLUSD_20250222
["timestamp","ask_amount","ask_price","bid_price","bid_amount"]
[1740219456178,11.42216299,174.15,174.09,87.3071]
[1740219456492,11.42216299,174.15,174.09,81.563]
[1740219457074,17.16366299,174.17,174.1,11.42216299]
[1740219457272,5.7415,174.17,174.11,11.42216299]
[1740219457512,98.39326299,174.18,174.11,17.16556299]
[1740219458394,0.03,174.18,174.13,11.42216299]
[1740219459072,0.03,174.18,174.14,11.42216299]
[1740219459281,0.03,174.18,174.16,11.42216299]
[1740219460104,0.03,174.18,174.15,23.30036299]
[1740219461472,0.03,174.18,174.15,17.55856299]
[1740219461671,0.03,174.18,174.14,11.42216299]
[1740219461892,0.03,174.18,174.15,20.0]
[1740219462088,0.03,174.18,174.12,94.51216299]
[1740219462288,11.45216299,174.18,174.12,1.59]
[1740219462479,11.42216299,174.17,174.1,11.42216299]
[1740219463574,5.7418,174.16,174.1,11.42216299]
[1740219463781,5.7418,174.16,174.09,0.063]
[1740219463782,11.42216299,174.15,174.09,0.063]
[1740219464077,11.42216299,174.14,174.09,0.063]
[1740219464490,98.36396299,174.16,174.09,17.22916299]
[1740219464696,81.2,174.16,174.1,11.42216299]
[1740219465097,92.62216299,174.16,174.09,11.48516299]
[1740219465497,81.2,174.16,174.09,11.48516299]
[1740219466291,81.2,174.16,174.09,17.22916299]
[1740219467014,86.942,174.16,174.09,17.22916299]
[1740219467384,5.742,174.16,174.09,17.22916299]
[1740219468280,16.26216299,174.17,174.1,11.42216299]
[1740219468484,4.84,174.17,174.1,11.42216299]
[1740219468684,10.5816,174.17,174.1,11.42216299]
[1740219469732,10.5816,174.17,174.1,17.16586299]
[1740219471028,10.5816,174.17,174.1,37.16586299]
[1740219471530,10.5816,174.17,174.11,11.42216299]
[1740219471932,10.5816,174.17,174.1,37.16586299]
[1740219472516,22.00376299,174.17,174.1,25.7437]
[1740219474635,11.42216299,174.16,174.1,20.0]
[1740219475645,22.00376299,174.17,174.1,31.42216299]
[1740219475933,11.42216299,174.16,174.1,20.0]
[1740219476233,11.42216299,174.15,174.1,20.0]
[1740219476614,17.16446299,174.15,174.1,20.0]
[1740219476827,5.7423,174.15,174.1,20.0]
[1740219479051,11.42216299,174.16,174.1,20.0]
[1740219479233,17.16396299,174.16,174.1,20.0]
[1740219479551,86.04,174.17,174.1,31.42216299]
[1740219479714,91.7815,174.17,174.11,11.42216299]
[1740219480039,91.7815,174.17,174.1,37.16586299]
[1740219480726,86.04,174.17,174.1,37.16586299]
[1740219481046,81.2,174.17,174.13,11.42216299]
[1740219481229,0.03,174.18,174.13,11.42216299]
[1740219481741,0.03,174.18,174.12,11.42216299]
[1740219482116,0.03,174.18,174.12,17.16506299]
[1740219482431,11.45216299,174.18,174.1,112.92216299]
[1740219482641,11.42216299,174.16,174.1,101.5]
[1740219483627,17.16406299,174.16,174.1,101.5]
[1740219484241,5.7419,174.16,174.1,101.5]
[1740219485242,5.7419,174.16,174.1,20.0]
[1740219487539,5.7419,174.16,174.09,11.48516299]
[1740219487725,17.16406299,174.16,174.09,0.063]
[1740219488164,5.7419,174.16,174.09,17.22926299]
[1740219488519,5.7419,174.16,174.09,11.48516299]
[1740219489649,5.7419,174.16,174.1,11.42216299]
[1740219490544,5.7419,174.16,174.09,11.48516299]
[1740219491117,81.2,174.17,174.13,11.42216299]
[1740219491339,0.03,174.18,174.14,11.42216299]
[1740219492050,5.7712,174.18,174.13,11.42216299]
[1740219492234,17.19336299,174.18,174.1,11.42216299]
[1740219493374,0.03,174.18,174.16,11.42216299]
[1740219495628,0.03,174.18,174.16,17.16396299]
[1740219496226,0.03,174.18,174.17,11.42216299]
[1740219497750,0.03,174.18,174.15,11.42216299]
[1740219497920,0.03,174.18,174.14,81.5]
[1740219499542,0.03,174.18,174.14,98.66456299]
[1740219499724,0.03,174.18,174.14,92.92216299]
[1740219499929,0.03,174.18,174.13,17.16496299]
[1740219500337,0.03,174.18,174.12,11.42216299]
[1740219500531,11.45216299,174.18,174.1,18.69046299]
[1740219500938,11.45216299,174.18,174.1,12.94676299]
[1740219501141,11.42216299,174.17,174.14,0.063]
[1740219502030,5.7418,174.16,174.14,0.063]
[1740219502829,10.6115,174.18,174.14,0.063]
[1740219503035,0.03,174.18,174.14,0.063]
[1740219503955,0.03,174.18,174.14,11.48516299]
[1740219504159,0.03,174.18,174.15,11.42216299]
[1740219505154,0.03,174.18,174.14,17.22746299]
[1740219506865,0.03,174.18,174.15,17.16406299]
[1740219507073,0.03,174.18,174.16,11.42216299]
[1740219507266,0.03,174.18,174.17,11.42216299]
[1740219508378,0.03,174.25,174.2,21.581]
[1740219508555,0.03,174.25,174.22,11.42216299]
[1740219508759,0.03,174.25,174.21,11.42216299]
[1740219509069,0.03,174.25,174.22,5.7398]
[1740219509271,0.03,174.25,174.22,17.16196299]
[1740219514257,0.03,174.25,174.21,11.42216299]
[1740219515351,0.03,174.25,174.22,11.42216299]
[1740219520080,0.03,174.25,174.22,17.16196299]
[1740219524160,0.03,174.25,174.24,11.42216299]
[1740219524378,0.03,174.25,174.23,17.16156299]
[1740219524681,0.03,174.25,174.23,5.7394]
[1740219524890,0.03,174.25,174.21,11.42216299]
[1740219525189,0.03,174.25,174.2,120.24356299]
[1740219526084,0.03,174.25,174.2,114.50316299]
[1740219526270,0.03,174.25,174.2,101.5]
[1740219527386,5.7688,174.25,174.2,101.5]
[1740219527961,17.19096299,174.25,174.18,11.48516299]
[1740219528159,11.42216299,174.24,174.18,0.063]
[1740219528382,11.42216299,174.23,174.18,0.063]
[1740219528585,11.42216299,174.22,174.18,0.063]
[1740219529303,17.16226299,174.22,174.18,0.063]
[1740219530173,11.42216299,174.22,174.18,0.063]
[1740219530563,17.16206299,174.22,174.18,0.063]
[1740219531764,11.42216299,174.21,174.18,0.063]
[1740219534290,17.16256299,174.21,174.18,0.063]
[1740219535290,92.62216299,174.2,174.18,0.063]
[1740219535589,11.42216299,174.19,174.18,0.063]
[1740219536389,17.16296299,174.19,174.18,0.063]
[1740219538488,98.36296299,174.19,174.18,0.063]
[1740219538689,11.42216299,174.17,174.16,0.0001]
[1740219540593,17.16366299,174.17,174.16,0.0001]
[1740219543586,35.81331185,174.17,174.16,0.0001]
[1740219543780,25.19914886,174.14,174.09,0.063]
[1740219543989,11.42216299,174.1,174.09,0.063]
[1740219544387,30.07181185,174.1,174.09,0.0001]
[1740219544611,35.81561185,174.1,174.09,0.0001]
[1740219545619,38.63788429,174.1,174.09,0.0001]
[1740219546319,2.1954,174.08,174.07,0.0001]
[1740219546613,2.1954,174.08,174.0,0.063]
[1740219546614,18.64964886,174.07,174.0,0.063]
[1740219546796,11.42216299,174.02,174.0,0.063]
[1740219548906,81.2,174.05,174.0,0.063]
[1740219548907,92.62216299,174.01,174.0,0.063]
[1740219549919,98.36886299,174.01,174.0,0.063]
[1740219551138,92.62216299,174.01,174.0,0.063]
[1740219551496,98.36886299,174.01,174.0,0.063]
[1740219551693,81.2,174.01,174.0,0.063]
[1740219552322,92.62216299,174.01,174.0,0.063]
[1740219552820,98.36886299,174.01,174.0,0.063]
[1740219553323,92.62216299,174.01,174.0,0.063]
[1740219554620,98.36886299,174.01,174.0,0.063]
[1740219559104,92.62216299,174.01,174.0,0.063]
[1740219559319,86.04,174.01,174.0,0.063]
[1740219559919,97.46216299,174.01,174.0,0.063]
[1740219560117,103.20886299,174.01,174.0,0.063]
[1740219560623,86.04,174.01,174.0,0.063]
[1740219561000,97.46216299,174.01,174.0,0.063]
[1740219562913,81.2,174.01,174.0,0.063]
[1740219570118,81.2,174.05,174.0,0.063]
[1740219571231,81.2,174.05,174.0,5.8101]
[1740219571625,81.2,174.05,174.0,18.85286299]
[1740219571926,81.2,174.05,174.0,13.10576299]
[1740219572129,11.42216299,174.04,174.0,0.063]
[1740219572320,86.9454,174.05,174.0,0.063]
[1740219572321,11.42216299,174.01,174.0,0.063]
[1740219572710,11.42216299,174.02,174.0,0.063]
[1740219572911,11.42216299,174.03,174.0,0.063]
[1740219574125,17.16826299,174.03,174.0,0.063]
[1740219575136,11.42216299,174.02,174.0,0.063]
[1740219575713,17.16826299,174.03,174.0,0.063]
[1740219576353,11.42216299,174.02,174.0,0.063]
[1740219577222,92.62216299,174.02,174.0,0.063]
[1740219577615,98.36866299,174.02,174.0,0.063]
[1740219577929,4.84,174.01,174.0,0.063]
[1740219580438,14.3616,174.08,174.0,11.48516299]
[1740219580439,81.23,174.07,174.0,11.48516299]
[1740219580621,86.9748,174.07,174.0,11.48516299]
[1740219580827,11.42216299,174.06,174.0,0.063]
[1740219581030,11.42216299,174.04,174.0,0.063]
[1740219581535,11.42216299,174.02,174.0,0.063]
[1740219581726,17.16876299,174.02,174.0,0.063]
[1740219582124,11.42216299,174.03,174.0,0.063]
[1740219583231,11.42216299,174.02,174.0,0.063]
[1740219583437,92.62216299,174.01,174.0,0.063]
[1740219583840,98.36886299,174.01,174.0,0.063]
[1740219584026,92.62216299,174.01,174.0,0.063]
[1740219584632,98.36886299,174.01,174.0,0.063]
[1740219585045,92.62216299,174.01,174.0,0.063]
[1740219586049,98.36886299,174.01,174.0,0.063]
[1740219587850,92.62216299,174.01,174.0,0.063]
[1740219588527,81.2,174.01,174.0,0.063]
[1740219591240,86.9467,174.01,174.0,0.063]
[1740219593126,81.2,174.01,174.0,0.063]
[1740219595247,81.2,174.03,174.0,0.063]
[1740219595552,86.9462,174.03,174.0,0.063]
[1740219596128,81.2,174.03,174.0,0.063]
[1740219597546,86.04,174.06,174.0,0.063]
[1740219597938,91.7851,174.06,174.0,0.063]
[1740219598245,86.04,174.06,174.0,0.063]
[1740219598644,86.04,174.06,174.0,5.8101]
[1740219599240,81.2,174.06,174.0,17.23226299]
[1740219599433,81.2,174.06,174.01,11.42216299]
[1740219599639,81.2,174.06,174.03,11.42216299]
[1740219600247,81.2,174.06,174.02,11.42216299]
[1740219600450,0.03,174.07,174.04,13.07466299]
[1740219601652,0.03,174.07,174.04,1.6525]
[1740219602246,17.19706299,174.07,174.04,1.6525]
[1740219602450,17.19706299,174.07,174.01,6.1182]
[1740219602746,11.42216299,174.06,174.01,6.1182]
[1740219604231,5.7454,174.05,174.01,6.1182]
[1740219604632,17.16756299,174.05,174.01,6.1182]
[1740219605048,22.00756299,174.05,174.01,6.1182]
[1740219605651,0.03,174.07,174.02,11.42216299]
[1740219605860,0.03,174.07,174.03,11.42216299]
[1740219606254,0.03,174.07,174.04,11.42216299]
[1740219606837,0.03,174.07,174.03,17.16806299]
[1740219607247,0.03,174.07,174.05,11.42216299]
[1740219607943,0.03,174.07,174.06,1.6468]
[1740219608142,0.03,174.07,174.06,18.81406299]
[1740219608340,4.82,174.15,174.07,18.64964886]
[1740219608663,81.2,174.15,174.1,11.42216299]
[1740219610148,0.03,174.15,174.12,11.42216299]
[1740219610767,0.03,174.15,174.14,13.06896299]
[1740219610942,0.03,174.15,174.14,19.35296299]
[1740219611751,0.03,174.15,174.14,25.09546299]
[1740219612153,0.03,174.17,174.16,20.0]
[1740219612353,0.03,174.17,174.16,50.07181185]
[1740219612663,0.03,174.17,174.16,56.47322378]
[1740219613052,91.7892,174.25,174.17,18.64964886]
[1740219613255,17.82357492,174.2,174.14,7.9308]
[1740219613460,81.2,174.24,174.14,7.9308]
[1740219613461,17.82357492,174.19,174.14,7.9308]
[1740219614254,23.56427492,174.2,174.14,7.9308]
[1740219614458,5.7407,174.2,174.14,25.75437492]
[1740219615770,5.7407,174.2,174.14,7.9308]
[1740219615771,23.56427492,174.2,174.14,7.9308]
[1740219617447,17.82357492,174.18,174.14,7.9308]
[1740219617653,23.56507492,174.17,174.14,7.9308]
[1740219619855,23.56507492,174.17,174.14,1.6468]
[1740219620056,23.56507492,174.17,174.1,25.57537492]
[1740219621273,5.7415,174.17,174.1,25.57537492]
[1740219621975,86.9412,174.18,174.12,17.82357492]
[1740219622170,81.2,174.18,174.14,0.063]
[1740219622357,10.5608,174.19,174.14,0.063]
[1740219622358,10.5608,174.19,174.14,20.063]
[1740219622967,28.38437492,174.19,174.14,20.063]
[1740219623980,17.82357492,174.17,174.14,0.063]
[1740219625871,5.7418,174.16,174.14,0.063]
[1740219626901,5.7415,174.17,174.14,0.063]
[1740219630893,81.2,174.18,174.14,0.063]
[1740219632986,86.9412,174.18,174.14,0.063]
[1740219633185,86.9412,174.18,174.14,20.063]
[1740219633186,104.76477492,174.18,174.14,20.063]
[1740219633366,104.76477492,174.18,174.14,0.063]
[1740219633768,5.7412,174.18,174.14,0.063]
[1740219634795,0.03,174.17,174.14,0.063]
[1740219648779,0.03,174.17,174.14,11.47995667]
[1740219650402,0.03,174.17,174.14,18.71264886]
[1740219651300,0.03,174.17,174.14,0.063]
[1740219652109,0.03,174.17,174.14,20.063]
[1740219654009,11.44695667,174.17,174.14,0.063]
[1740219654194,11.41695667,174.16,174.14,0.063]
[1740219655083,5.7421,174.15,174.14,0.063]
[1740219656799,17.15905667,174.15,174.14,0.063]
[1740219662307,80.2,174.16,174.14,0.063]
[1740219662987,80.2,174.16,174.14,11.47995667]
[1740219663322,80.2,174.16,174.14,0.063]
[1740219665483,85.9421,174.16,174.14,0.063]
[1740219665711,97.35905667,174.16,174.14,0.063]
[1740219666408,85.9421,174.16,174.14,0.063]
[1740219667191,80.2,174.16,174.14,0.063]
[1740219669209,0.03,174.17,174.14,0.063]
[1740219669392,0.03,174.17,174.15,11.41695667]
[1740219670094,0.03,174.17,174.16,11.41695667]
[1740219670296,0.03,174.17,174.16,19.61595667]
[1740219672299,0.03,174.17,174.16,25.35775667]
[1740219674821,0.03,174.17,174.16,8.199]
[1740219676023,0.03,174.17,174.14,0.063]
[1740219676902,0.03,174.17,174.16,20.0]
[1740219677131,0.03,174.17,174.14,11.47995667]
[1740219677501,0.03,174.17,174.16,20.0]
[1740219678025,0.03,174.17,174.14,11.47995667]
[1740219679210,0.03,174.17,174.14,17.22235667]
[1740219680108,0.03,174.17,174.16,11.41695667]
[1740219680706,0.03,174.17,174.16,31.41695667]
[1740219681313,0.03,174.17,174.16,37.15875667]
[1740219686537,0.03,174.17,174.16,31.41695667]
[1740219686726,0.03,174.17,174.16,20.0]
[1740219687113,0.03,174.17,174.14,0.063]
[1740219688314,11.41695667,174.16,174.14,0.063]
[1740219688641,11.41695667,174.15,174.14,0.063]
[1740219690428,17.15905667,174.15,174.14,0.063]
[1740219692221,70.58768335,174.15,174.14,0.063]
[1740219692711,24.91985667,174.15,174.14,0.063]
[1740219694330,17.15905667,174.15,174.14,0.063]
[1740219695030,11.41695667,174.15,174.14,0.063]
[1740219695237,17.15875667,174.16,174.14,0.063]
[1740219695429,5.7418,174.16,174.14,0.063]
[1740219695615,17.15875667,174.16,174.14,0.063]
[1740219696533,11.44695667,174.17,174.14,0.063]
[1740219696729,4.85,174.17,174.14,0.063]
[1740219696915,85.05,174.17,174.14,0.063]
[1740219697234,80.23,174.17,174.14,0.063]
[1740219698349,85.9715,174.17,174.14,0.063]
[1740219702144,11.41695667,174.15,174.14,0.063]
[1740219703923,17.15905667,174.15,174.14,0.063]
[1740219711556,21.95905667,174.15,174.14,0.063]
[1740219713736,10.5421,174.15,174.14,0.063]
[1740219713935,80.23,174.17,174.14,0.063]
[1740219719736,81.2,174.16,174.14,0.063]
[1740219720366,0.03,174.17,174.14,0.063]
[1740219720543,0.03,174.17,174.14,11.47995667]
[1740219722554,0.03,174.17,174.15,5.7421]
[1740219724857,0.03,174.17,174.15,11.41695667]
[1740219726562,0.03,174.17,174.15,17.15905667]
[1740219727662,0.03,174.17,174.16,11.41695667]
[1740219728663,0.03,174.17,174.16,17.15875667]
[1740219742594,0.03,174.17,174.16,17.15875667]
[1740219742889,0.03,174.17,174.16,17.22175667]
[1740219743880,0.03,174.17,174.16,11.47995667]
[1740219744480,0.03,174.17,174.16,17.22175667]
[1740219760077,0.03,174.17,174.16,35.87140553]
[1740219760274,0.03,174.17,174.16,37.48280553]
[1740219761397,0.03,174.17,174.16,38.48280553]
[1740219761996,0.03,174.17,174.16,40.35797796]
[1740219762693,0.03,174.2,174.16,40.35797796]
[1740219762694,0.03,174.2,174.19,20.0]
[1740219762888,0.03,174.2,174.19,56.46240553]
[1740219763087,81.2,174.28,174.23,20.0]
[1740219763412,81.2,174.28,174.24,11.41695667]
[1740219763976,0.03,174.29,174.24,11.41695667]
[1740219764688,0.03,174.29,174.24,35.80580553]
[1740219764899,0.03,174.29,174.24,81.47363221]
[1740219765579,0.03,174.29,174.24,18.64964886]
[1740219765779,0.03,174.29,174.24,30.06660553]
[1740219765972,0.03,174.29,174.24,11.41695667]
[1740219766176,0.03,174.29,174.23,33.05605667]
[1740219766395,0.03,174.29,174.23,31.41695667]
[1740219766591,0.03,174.29,174.19,89.5349]
[1740219766592,11.44695667,174.29,174.22,11.41695667]
[1740219767181,11.41695667,174.27,174.22,20.0]
[1740219767387,11.41695667,174.27,174.2,11.41695667]
[1740219768201,86.0,174.28,174.23,11.41695667]
[1740219768383,86.0,174.28,174.24,11.41695667]
[1740219769002,86.0,174.28,174.23,11.41695667]
[1740219769803,86.0,174.28,174.24,11.41695667]
[1740219770183,91.7379,174.28,174.23,31.41695667]
[1740219770384,91.7379,174.28,174.23,20.0]
[1740219770681,91.7379,174.28,174.19,7.3797]
[1740219770682,103.15485667,174.28,174.21,11.41695667]
[1740219770909,103.15485667,174.28,174.21,31.41695667]
[1740219772193,81.2,174.27,174.21,31.41695667]
[1740219772390,5.7385,174.26,174.21,31.41695667]
[1740219772604,5.7385,174.26,174.21,20.0]
[1740219772905,86.9382,174.27,174.21,31.41695667]
[1740219773911,86.9382,174.27,174.23,11.41695667]
[1740219773912,81.2,174.27,174.23,11.41695667]
[1740219774098,81.2,174.27,174.24,11.41695667]
[1740219775687,0.03,174.29,174.24,30.06660553]
[1740219776605,0.03,174.29,174.24,35.80580553]
[1740219777407,0.03,174.29,174.24,81.47363221]
[1740219777709,0.03,174.29,174.28,20.0]
[1740219778012,0.03,174.29,174.28,50.06660553]
[1740219778601,0.03,174.29,174.28,31.41695667]
[1740219780510,0.03,174.29,174.28,20.0]
[1740219781521,0.03,174.29,174.28,31.41695667]
[1740219782594,0.03,174.29,174.27,31.41695667]
[1740219782988,81.23,174.29,174.24,11.41695667]
[1740219783199,81.23,174.29,174.23,11.41695667]
[1740219783897,92.61695667,174.28,174.22,20.0]
[1740219784097,11.41695667,174.27,174.22,20.0]
[1740219784412,92.61695667,174.26,174.2,0.063]
[1740219784715,5.7388,174.25,174.2,0.063]
[1740219785609,86.9388,174.25,174.2,0.063]
[1740219785819,81.2,174.24,174.2,0.063]
[1740219786693,81.2,174.23,174.2,0.063]
[1740219786899,81.2,174.22,174.2,0.063]
[1740219787119,81.2,174.22,174.2,17.88876155]
[1740219788611,81.2,174.22,174.21,17.82576155]
[1740219789603,81.2,174.26,174.21,17.82576155]
[1740219789795,81.2,174.26,174.25,17.82576155]
[1740219790118,81.23,174.29,174.25,17.82576155]
[1740219790418,0.03,174.29,174.28,17.82576155]
[1740219792012,0.03,174.29,174.27,17.82576155]
[1740219793520,0.03,174.29,174.23,17.82576155]
[1740219793907,17.85576155,174.29,174.23,20.0]
[1740219794210,17.82576155,174.26,174.2,0.063]
[1740219794415,17.82576155,174.25,174.2,0.063]
[1740219794613,81.2,174.24,174.2,0.063]
[1740219795005,81.2,174.23,174.2,0.063]
[1740219795409,81.2,174.22,174.2,0.063]
[1740219797522,81.2,174.22,174.2,17.88876155]
[1740219798225,81.2,174.22,174.21,17.82576155]
[1740219799021,34.56786155,174.28,174.21,17.82576155]
[1740219799022,81.2,174.27,174.21,23.56586155]
[1740219799223,81.2,174.27,174.24,17.82576155]
[1740219801312,81.2,174.27,174.23,17.82576155]
[1740219801826,86.9683,174.27,174.21,17.82576155]
[1740219802507,81.23,174.27,174.25,17.82576155]
[1740219803021,81.23,174.27,174.23,17.82576155]
[1740219803328,81.23,174.27,174.22,17.82576155]
[1740219803847,81.23,174.27,174.21,37.82576155]
[1740219804147,81.2,174.26,174.22,17.82576155]
[1740219804521,81.2,174.26,174.23,17.82576155]
[1740219804717,81.2,174.26,174.22,17.82576155]
[1740219805745,81.2,174.26,174.23,17.82576155]
[1740219806041,81.2,174.26,174.22,17.82576155]
[1740219806524,81.2,174.26,174.23,17.82576155]
[1740219806728,81.2,174.26,174.22,17.82576155]
[1740219807823,81.2,174.26,174.21,20.0]
[1740219809041,81.2,174.25,174.21,43.56576155]
[1740219809843,81.2,174.25,174.21,37.82576155]
[1740219811145,81.2,174.25,174.21,43.56576155]
[1740219812346,81.2,174.25,174.21,37.82576155]
[1740219813136,81.2,174.25,174.24,17.82576155]
[1740219813482,81.2,174.25,174.23,17.82576155]
[1740219814640,81.2,174.25,174.22,17.82576155]
[1740219815051,81.2,174.25,174.22,23.56536155]
[1740219815242,81.2,174.25,174.23,17.82576155]
[1740219816459,81.2,174.25,174.22,23.56536155]
[1740219819545,81.2,174.25,174.23,17.82576155]
[1740219819744,81.2,174.25,174.24,17.82576155]
[1740219820356,0.03,174.27,174.24,17.82576155]
[1740219820563,0.03,174.27,174.25,17.82576155]
[1740219820733,0.03,174.27,174.23,17.82576155]
[1740219822057,0.03,174.27,174.23,23.56516155]
[1740219822360,0.03,174.27,174.24,17.82576155]
[1740219822659,0.03,174.27,174.26,17.82576155]
[1740219823337,0.03,174.27,174.25,17.82576155]
[1740219824041,0.03,174.27,174.24,17.82576155]
[1740219824237,0.03,174.27,174.24,23.56466155]
[1740219824441,0.03,174.27,174.25,17.82576155]
[1740219826667,0.03,174.27,174.25,11.39963761]
[1740219827276,0.03,174.27,174.24,11.39963761]
[1740219827566,0.03,174.27,174.23,31.39963761]
[1740219827769,0.03,174.27,174.26,11.39963761]
[1740219827944,0.03,174.27,174.25,11.39963761]
[1740219828144,0.03,174.27,174.24,11.39963761]
[1740219829947,0.03,174.27,174.24,17.13863761]
[1740219830164,0.03,174.27,174.25,11.39963761]
[1740219831460,0.03,174.27,174.25,17.13833761]
[1740219832178,0.03,174.27,174.26,11.39963761]
[1740219833374,0.03,174.27,174.26,17.13813761]
[1740219834470,0.03,174.27,174.23,25.7394]
[1740219834770,0.03,174.27,174.25,11.39963761]
[1740219835569,0.03,174.27,174.24,11.39963761]
[1740219835769,0.03,174.27,174.26,11.39963761]
[1740219838952,0.03,174.27,174.25,11.39963761]
[1740219839270,0.03,174.27,174.25,11.46263761]
[1740219839861,0.03,174.27,174.25,0.063]
[1740219842362,0.03,174.27,174.25,11.46263761]
[1740219842753,0.03,174.27,174.26,11.39963761]
[1740219844249,0.03,174.27,174.26,17.13813761]
[1740219844574,0.03,174.27,174.26,35.78778647]
[1740219845286,0.03,174.27,174.25,11.46263761]
[1740219845580,0.03,174.27,174.26,31.39963761]
[1740219846580,0.03,174.27,174.26,20.0]
[1740219846784,0.03,174.27,174.25,11.46263761]
[1740219846962,0.03,174.27,174.25,0.063]
[1740219853392,0.03,174.27,174.26,11.39963761]
[1740219853592,0.03,174.27,174.26,30.04928647]
[1740219854565,0.03,174.27,174.26,35.78778647]
[1740219856065,0.03,174.27,174.26,42.17998647]
[1740219858684,0.03,174.27,174.26,48.58262743]
[1740219858986,0.03,174.29,174.28,20.0]
[1740219859176,0.03,174.29,174.28,36.45192743]
[1740219860390,0.03,174.29,174.28,37.80227857]
[1740219860697,0.03,174.29,174.28,56.45192743]
[1740219860865,0.03,174.29,174.28,62.18972743]
[1740219861680,0.03,174.29,174.28,56.45192743]
[1740219862570,0.03,174.29,174.28,62.18972743]
[1740219862771,0.03,174.29,174.28,56.45192743]
[1740219864190,0.03,174.29,174.28,62.18972743]
[1740219865487,0.03,174.29,174.28,37.80227857]
[1740219867882,0.03,174.29,174.28,62.18972743]
[1740219872079,0.03,174.29,174.28,56.45192743]
[1740219872676,0.03,174.29,174.28,20.0]
[1740219872882,0.03,174.29,174.27,17.80227857]
[1740219873794,0.03,174.29,174.28,17.80227857]
[1740219875288,0.03,174.29,174.28,36.45192743]
[1740219875801,0.03,174.29,174.28,42.18972743]
[1740219877508,0.03,174.29,174.28,123.68972743]
[1740219877883,0.03,174.3,174.29,18.64964886]
[1740219878093,0.03,174.3,174.29,117.95192743]
[1740219879106,0.0001,174.3,174.29,117.95192743]
[1740219880118,0.0001,174.3,174.29,123.68942743]
[1740219884707,0.0001,174.3,174.29,117.27630815]
[1740219885008,0.03,174.35,174.34,20.0]
[1740219885210,0.03,174.35,174.34,50.03880815]
[1740219885790,0.03,174.35,174.34,55.77470815]
[1740219886706,0.03,174.35,174.34,62.17128171]
[1740219887986,0.03,174.35,174.34,37.78573285]
[1740219890612,0.03,174.35,174.32,36.43538171]
[1740219890913,0.03,174.35,174.3,23.52263285]
[1740219891114,0.03,174.35,174.29,36.43538171]
[1740219891303,0.03,174.35,174.28,17.78573285]
[1740219891505,0.03,174.35,174.31,20.0]
[1740219892192,0.03,174.35,174.28,17.78573285]
[1740219892386,0.03,174.35,174.29,17.78573285]
[1740219892814,17.81573285,174.35,174.31,20.0]
[1740219893317,0.03,174.35,174.31,20.0]
[1740219893813,23.55133285,174.35,174.31,20.0]
[1740219894022,17.78573285,174.34,174.27,0.063]
[1740219894190,17.78573285,174.33,174.28,20.0]
[1740219894396,98.98573285,174.32,174.27,0.063]
[1740219894591,17.78573285,174.31,174.27,0.063]
[1740219894802,81.2,174.3,174.27,0.063]
[1740219899509,17.78573285,174.28,174.27,0.063]
[1740219899712,17.78573285,174.28,174.25,0.063]
[1740219899713,20.0,174.26,174.25,0.063]
[1740219899916,42.94573285,174.26,174.25,0.063]
[1740219900804,44.19803285,174.26,174.25,0.063]
[1740219901319,49.93653285,174.26,174.25,0.063]
[1740219901813,6.4123,174.26,174.25,0.063]